bitfinex/quotes_BTCUSD_20251011
["timestamp","ask_amount","ask_price","bid_price","bid_amount"]
[1760143917839,0.17656925,113270.0,113260.0,0.04244564]
[1760143918188,0.17656925,113270.0,113260.0,0.04344564]
[1760143918310,0.17656925,113270.0,113260.0,0.04244564]
[1760143919548,0.15644525,113270.0,113260.0,0.04244564]
[1760143919955,0.15644525,113270.0,113260.0,0.21903048]
[1760143920116,0.15644525,113270.0,113260.0,0.04244564]
[1760143920530,0.15644525,113270.0,113260.0,0.04344564]
[1760143920794,0.15644525,113270.0,113260.0,0.22003048]
[1760143920983,0.15644525,113270.0,113260.0,0.04344564]
[1760143922617,0.55644525,113270.0,113260.0,0.02455281]
[1760143922780,0.17660044,113250.0,113240.0,0.02357277]
[1760143922978,0.17710555,113250.0,113240.0,0.01893259]
[1760143924308,0.17664723,113220.0,113210.0,0.02397277]
[1760143924510,0.17664723,113220.0,113210.0,0.04290925]
[1760143924707,0.28529442,113220.0,113210.0,0.02562039]
[1760143925119,0.28529442,113220.0,113210.0,0.00668391]
[1760143926889,0.28529442,113220.0,113210.0,0.00768391]
[1760143927411,0.10864719,113220.0,113210.0,0.24930674]
[1760143927644,0.00050511,113250.0,113230.0,0.17662054]
[1760143927892,0.1771068,113250.0,113230.0,0.22524054]
[1760143928061,0.1771068,113250.0,113230.0,0.24411445]
[1760143928471,0.17661603,113240.0,113220.0,0.33207847]
[1760143928700,0.17663163,113230.0,113220.0,0.01886985]
[1760143929392,0.17663163,113230.0,113210.0,0.0004]
[1760143929393,0.17664723,113220.0,113210.0,0.0004]
[1760143930392,0.17664723,113220.0,113210.0,0.0014]
[1760143932481,0.14140677,113230.0,113210.0,0.0014]
[1760143932742,0.17664723,113220.0,113210.0,0.0014]
[1760143933321,0.17664723,113220.0,113210.0,0.0064]
[1760143933679,0.17664723,113220.0,113210.0,0.01268391]
[1760143934058,0.17664723,113220.0,113210.0,0.01168391]
[1760143934386,0.17664723,113220.0,113210.0,0.01268391]
[1760143934587,1.13522027,113220.0,113210.0,0.01268391]
[1760143934809,1.19130257,113220.0,113210.0,0.01268391]
[1760143935002,1.21630256,113220.0,113210.0,1e-08]
[1760143935235,0.97181472,113210.0,113200.0,1e-08]
[1760143935389,0.99774512,113210.0,113200.0,1e-08]
[1760143935591,1.09774511,113210.0,113200.0,1e-08]
[1760143936076,1.09774511,113210.0,113160.0,0.00838638]
[1760143936077,1.22545022,113170.0,113160.0,0.00838638]
[1760143936251,0.60690841,113150.0,113140.0,0.0004]
[1760143936671,0.17680339,113120.0,113110.0,0.07051882]
[1760143936951,0.17680339,113120.0,113110.0,8.698e-05]
[1760143937895,0.17730757,113120.0,113110.0,8.698e-05]
[1760143938966,0.20745947,113120.0,113110.0,8.698e-05]
[1760143939185,0.23245946,113120.0,113110.0,8.698e-05]
[1760143939316,0.21952847,113130.0,113110.0,8.698e-05]
[1760143939523,0.21952847,113130.0,113070.0,0.02307499]
[1760143939524,0.17686593,113080.0,113070.0,0.02307499]
[1760143939725,0.62741477,113100.0,113070.0,0.22545482]
[1760143939942,0.79540823,113100.0,113070.0,0.28017889]
[1760143940168,0.80424996,113100.0,113070.0,0.02357917]
[1760143940493,0.17685612,113090.0,113070.0,0.02357917]
[1760143940703,0.17685612,113090.0,113070.0,0.22546001]
[1760143940910,0.80423101,113130.0,113090.0,0.0338425]
[1760143941131,0.17680405,113120.0,113100.0,0.02499999]
[1760143941338,0.80423101,113130.0,113100.0,0.20183447]
[1760143941544,0.18561312,113140.0,113110.0,0.17681717]
[1760143941758,0.17685694,113150.0,113120.0,0.17680084]
[1760143941966,0.68900488,113160.0,113130.0,0.17678647]
[1760143942179,0.17866502,113150.0,113130.0,0.17678647]
[1760143942373,0.17866502,113150.0,113120.0,0.25652099]
[1760143942581,0.17677214,113140.0,113120.0,0.03384015]
[1760143942794,0.17678776,113130.0,113120.0,0.00015078]
[1760143943215,0.17857076,113120.0,113090.0,0.2565124]
[1760143943413,0.1768202,113110.0,113090.0,0.36550417]
[1760143943690,0.0017575,113120.0,113100.0,0.1768273]
[1760143943951,0.17856125,113120.0,113100.0,0.1768273]
[1760143944183,0.1768193,113110.0,113090.0,0.55119645]
[1760143944406,0.17859215,113100.0,113090.0,0.00050418]
[1760143945057,0.82731709,113100.0,113090.0,0.00050418]
[1760143945284,0.79716519,113100.0,113090.0,0.00050418]
[1760143945497,0.17811617,113090.0,113070.0,0.02307499]
[1760143945707,0.17686593,113080.0,113070.0,0.02307499]
[1760143945927,0.17862022,113090.0,113070.0,0.22495618]
[1760143946135,0.9384568,113090.0,113070.0,0.02307499]
[1760143946345,0.93845702,113090.0,113070.0,0.02307499]
[1760143946513,0.17686593,113080.0,113070.0,0.02182167]
[1760143946925,0.17689722,113060.0,113050.0,0.36499999]
[1760143947107,0.17689722,113060.0,113040.0,0.05480642]
[1760143947108,0.17691287,113050.0,113040.0,0.02507999]
[1760143947313,0.17691287,113050.0,113040.0,8e-05]
[1760143947539,0.8043269,113070.0,113040.0,8e-05]
[1760143947813,0.18575386,113070.0,113040.0,0.20200806]
[1760143948002,0.18570922,113080.0,113050.0,0.20191232]
[1760143948226,0.1768833,113070.0,113050.0,0.20191232]
[1760143948450,0.18621327,113080.0,113050.0,0.02499999]
[1760143948677,0.93675044,113060.0,113040.0,0.02507999]
[1760143948912,0.93675044,113060.0,113040.0,0.20200801]
[1760143949139,0.93675044,113060.0,113050.0,0.17691287]
[1760143949140,0.75984898,113060.0,113050.0,0.17691287]
[1760143949381,0.75984898,113060.0,113050.0,0.24779286]
[1760143949587,0.75984898,113060.0,113050.0,0.77804476]
[1760143950687,0.0527104,113060.0,113050.0,0.9905453]
[1760143950892,1e-08,113060.0,113050.0,0.9655453]
[1760143951062,1e-08,113060.0,113050.0,0.86554531]
[1760143951292,0.09335239,113100.0,113090.0,0.51685029]
[1760143951558,0.09335239,113100.0,113090.0,0.54200113]
[1760143951764,0.09335239,113100.0,113090.0,0.20200113]
[1760143952098,0.02292055,113100.0,113090.0,0.20200113]
[1760143952833,0.02292055,113100.0,113090.0,0.02515084]
[1760143953000,0.2953852,113100.0,113090.0,0.00015085]
[1760143953444,0.11855055,113100.0,113090.0,0.00015085]
[1760143953666,0.2953852,113100.0,113090.0,0.00015085]
[1760143954245,0.32220231,113100.0,113090.0,0.00015085]
[1760143954449,0.72220231,113100.0,113090.0,0.00015085]
[1760143954606,0.2953852,113100.0,113090.0,0.00015085]
[1760143954814,0.32220231,113100.0,113090.0,0.00015085]
[1760143955471,0.72220231,113100.0,113090.0,0.00015085]
[1760143955683,0.32220231,113100.0,113090.0,0.00015085]
[1760143955878,0.72220231,113100.0,113090.0,0.00015085]
[1760143956632,0.75235421,113100.0,113090.0,0.00015085]
[1760143956770,0.75235421,113100.0,113040.0,8e-05]
[1760143956771,0.17691287,113050.0,113040.0,8e-05]
[1760143956970,0.21287287,113050.0,113040.0,0.02558404]
[1760143957332,0.26251287,113050.0,113040.0,0.00058405]
[1760143957892,0.0856,113050.0,113040.0,0.00058405]
[1760143958093,0.03491,113050.0,113040.0,0.20251256]
[1760143958413,0.03491,113060.0,113050.0,0.20191286]
[1760143958714,0.0455,113070.0,113060.0,0.17689722]
[1760143958916,0.22322157,113070.0,113050.0,0.24757286]
[1760143959114,0.0361,113060.0,113050.0,0.20191286]
[1760143959277,0.0361,113060.0,113050.0,0.24757286]
[1760143959473,0.0361,113060.0,113050.0,0.20191286]
[1760143960164,0.03729,113060.0,113050.0,0.20191286]
[1760143961407,0.17691287,113050.0,113040.0,0.00058405]
[1760143961611,0.26025287,113050.0,113040.0,0.02558404]
[1760143961810,0.26180287,113050.0,113040.0,0.00058405]
[1760143963461,0.26180287,113050.0,113040.0,0.01031487]
[1760143964272,0.08489,113050.0,113040.0,0.01031487]
[1760143964472,0.26180287,113050.0,113040.0,0.01031487]
[1760143965936,0.26180287,113050.0,113040.0,0.00992042]
[1760143966375,0.26180287,113050.0,113010.0,0.01]
[1760143966376,0.17695983,113020.0,113010.0,0.01]
[1760143966579,0.21591335,113020.0,113010.0,0.01]
[1760143966802,0.25473335,113020.0,113010.0,0.01]
[1760143967375,0.28447398,113020.0,113010.0,0.01]
[1760143968742,0.25473335,113020.0,113010.0,0.01]
[1760143969667,0.28447398,113020.0,113010.0,0.01]
[1760143972021,0.28447398,113020.0,113010.0,0.01171895]
[1760143972786,0.25473335,113020.0,113010.0,0.01171895]
[1760143973531,0.21859335,113020.0,113010.0,0.03671894]
[1760143974031,0.25466335,113020.0,113010.0,0.01171895]
[1760143974491,0.28440398,113020.0,113010.0,0.01171895]
[1760143975097,0.68440398,113020.0,113010.0,0.01171895]
[1760143975406,0.17697548,113010.0,113000.0,0.005]
[1760143975587,0.22373548,113010.0,113000.0,0.005]
[1760143975804,0.29235611,113010.0,113000.0,0.005]
[1760143976155,0.24235611,113010.0,113000.0,1e-08]
[1760143976379,0.21261548,113010.0,113000.0,1e-08]
[1760143976755,0.24235611,113010.0,113000.0,1e-08]
[1760143976968,0.21261548,113010.0,113000.0,0.025]
[1760143977164,0.04989,113010.0,113000.0,0.20199115]
[1760143977370,0.04676,113010.0,113000.0,0.24899115]
[1760143977567,0.21591335,113020.0,113010.0,0.02499999]
[1760143977746,0.03895352,113020.0,113010.0,0.02499999]
[1760143977951,0.21591335,113020.0,113010.0,0.02499999]
[1760143978187,0.04187352,113020.0,113010.0,0.20197547]
[1760143978389,0.00050352,113020.0,113010.0,0.40697547]
[1760143978612,0.00050352,113020.0,113010.0,0.77712737]
[1760143979230,0.00050352,113020.0,113010.0,0.80082195]
[1760143979639,0.00050352,113020.0,113010.0,0.77712737]
[1760143980160,0.25442335,113020.0,113010.0,0.02499999]
[1760143980443,0.07746352,113020.0,113010.0,0.20197547]
[1760143980759,0.07746352,113020.0,113010.0,0.43712737]
[1760143980760,0.00050352,113020.0,113010.0,0.43712737]
[1760143980967,0.00094556,113020.0,113010.0,0.86462792]
[1760143981170,0.00094556,113020.0,113010.0,0.80082195]
[1760143981493,0.00094556,113020.0,113010.0,0.85082195]
[1760143981673,0.00094556,113020.0,113010.0,0.82712737]
[1760143981890,0.00094556,113020.0,113010.0,0.84604268]
[1760143982333,0.00094556,113020.0,113010.0,0.86973726]
[1760143983879,0.00094556,113020.0,113010.0,0.90112188]
[1760143984291,0.21643539,113020.0,113010.0,0.48898649]
[1760143984503,0.03909556,113020.0,113010.0,0.65789078]
[1760143984722,0.03909556,113020.0,113010.0,0.31789078]
[1760143985120,0.21605539,113020.0,113010.0,0.0939153]
[1760143985375,0.21711539,113020.0,113010.0,0.27089078]
[1760143985638,0.28426539,113020.0,113010.0,0.0939153]
[1760143985823,0.28426539,113020.0,113010.0,0.05]
[1760143988103,0.68426539,113020.0,113010.0,0.05]
[1760143988519,0.71093589,113020.0,113010.0,0.05]
[1760143988701,0.17697548,113010.0,113000.0,0.00057313]
[1760143988945,0.20782548,113010.0,113000.0,0.00057313]
[1760143989170,0.27566548,113010.0,113000.0,0.00057313]
[1760143992004,0.09869,113010.0,113000.0,0.00057313]
[1760143992201,0.27566548,113010.0,113000.0,0.02557312]
[1760143992649,0.27566548,113010.0,113000.0,0.20256427]
[1760143992650,0.09869,113010.0,113000.0,0.20256427]
[1760143992825,0.27566548,113010.0,113000.0,0.02557312]
[1760143994280,0.27566548,113010.0,113000.0,0.00057313]
[1760143994483,0.20782548,113010.0,113000.0,0.09360388]
[1760143994868,0.03085,113010.0,113000.0,0.27059503]
[1760143995364,0.21605539,113020.0,113010.0,0.23212737]
[1760143995365,0.00094556,113020.0,113010.0,0.23212737]
[1760143995582,0.00094556,113020.0,113010.0,0.83425479]
[1760143995840,1e-08,113020.0,113010.0,0.93724561]
[1760143996069,0.13972,113070.0,113060.0,0.20189721]
[1760143996070,0.04376,113070.0,113060.0,0.20189721]
[1760143996323,0.03918,113080.0,113070.0,0.20188156]
[1760143996570,0.2304519,113090.0,113080.0,0.02499999]
[1760143996571,0.04464,113090.0,113080.0,0.02499999]
[1760143996779,0.04635,113080.0,113070.0,0.20188156]
[1760143996999,0.22321593,113080.0,113070.0,0.20188156]
[1760143997231,0.22321593,113080.0,113070.0,0.02499999]
[1760143997449,0.27222593,113080.0,113070.0,0.02499999]
[1760143997899,0.27222593,113080.0,113070.0,0.20188156]
[1760143998367,0.27320593,113080.0,113060.0,0.20204817]
[1760143998836,0.17688157,113070.0,113060.0,0.02515095]
[1760143999047,0.22017157,113070.0,113060.0,0.02515095]
[1760143999273,0.26912157,113070.0,113060.0,0.02515095]
[1760143999504,0.26912157,113070.0,113060.0,0.20204817]
[1760143999770,0.09224,113070.0,113060.0,0.20204817]
[1760144000758,0.26912157,113070.0,113060.0,0.20204817]
[1760144001304,0.26912157,113070.0,113060.0,0.02515095]
[1760144001471,0.26912157,113070.0,113060.0,0.20204817]
[1760144001684,0.0415041,113070.0,113060.0,0.20204817]
[1760144001880,0.00286357,113070.0,113060.0,0.31650817]
[1760144002055,0.17974514,113070.0,113060.0,0.13961095]
[1760144002261,0.17974514,113070.0,113060.0,0.25110817]
[1760144002632,0.00286357,113070.0,113060.0,0.25110817]
[1760144003094,0.00286357,113070.0,113060.0,0.31650817]
[1760144003308,0.00286357,113070.0,113060.0,0.41361817]
[1760144003724,0.00286357,113070.0,113060.0,0.78377007]
[1760144003881,0.00286357,113070.0,113060.0,0.80262864]
[1760144005084,0.17684049,113100.0,113080.0,0.17686189]
[1760144005286,0.17684049,113100.0,113080.0,0.22592189]
[1760144005287,0.04732,113090.0,113080.0,0.22592189]
[1760144005488,0.22416049,113100.0,113090.0,0.20185028]
[1760144005680,0.04732,113100.0,113090.0,0.25091028]
[1760144005880,0.04733,113110.0,113100.0,0.20183464]
[1760144006121,0.22414902,113110.0,113100.0,0.02499999]
[1760144006636,0.22461902,113110.0,113100.0,0.02499999]
[1760144007155,0.22461902,113110.0,113100.0,0.02515095]
[1760144007351,0.26999902,113110.0,113100.0,0.02515095]
[1760144007914,0.26999902,113110.0,113100.0,0.00015096]
[1760144008240,0.63761876,113110.0,113100.0,0.00015096]
[1760144009319,0.60999902,113110.0,113100.0,0.00015096]
[1760144010309,0.60999902,113110.0,113100.0,1e-08]
[1760144010513,0.63761876,113110.0,113100.0,1e-08]
[1760144010892,0.57688157,113070.0,113060.0,0.00094505]
[1760144011092,0.63908131,113070.0,113060.0,0.0010961]
[1760144011292,0.68543131,113070.0,113060.0,0.0010961]
[1760144011512,0.17692852,113040.0,113030.0,0.07043184]
[1760144011734,0.17692852,113040.0,113030.0,0.07058312]
[1760144011735,0.22369852,113040.0,113030.0,0.07058312]
[1760144011933,0.27098852,113040.0,113030.0,0.07058312]
[1760144012344,0.27098852,113040.0,113030.0,0.00015128]
[1760144013578,0.17697548,113010.0,113000.0,1e-08]
[1760144013788,0.17697548,113010.0,113000.0,0.00050353]
[1760144013789,0.21724548,113010.0,113000.0,0.00050353]
[1760144013986,0.26534548,113010.0,113000.0,0.00050353]
[1760144014194,0.66534548,113010.0,113000.0,0.00050353]
[1760144014442,0.26534548,113010.0,113000.0,0.00050353]
[1760144014854,0.26486548,113010.0,113000.0,0.00050353]
[1760144015054,0.26534548,113010.0,113000.0,0.00050353]
[1760144015469,0.04027,113010.0,113000.0,0.11496353]
[1760144015675,0.21723002,113020.0,113000.0,0.38906467]
[1760144016098,0.21723002,113020.0,113000.0,0.29195467]
[1760144016646,0.04302,113030.0,113010.0,0.22603548]
[1760144016854,0.17694417,113030.0,113010.0,0.32314548]
[1760144017055,0.17694417,113030.0,113020.0,0.11446]
[1760144017485,0.17694417,113030.0,113020.0,0.04906]
[1760144018500,0.09544844,113040.0,113020.0,0.22601983]
[1760144018791,0.17694417,113030.0,113020.0,0.04906]
[1760144019670,0.17695983,113020.0,113010.0,0.04906]
[1760144019903,0.17697548,113010.0,113000.0,0.56655468]
[1760144020102,0.17697548,113010.0,113000.0,0.38956353]
[1760144020329,0.17697548,113010.0,113000.0,0.04956353]
[1760144020683,0.17697548,113010.0,113000.0,0.22655468]
[1760144020891,0.17697548,113010.0,113000.0,0.04956353]
[1760144021729,0.17697548,113010.0,113000.0,0.22655468]
[1760144021957,0.17742548,113010.0,113000.0,0.00050353]
[1760144022334,0.22188548,113010.0,113000.0,0.00050353]
[1760144023835,0.17742548,113010.0,113000.0,0.00050353]
[1760144024040,0.21722983,113020.0,113000.0,0.28846468]
[1760144024197,0.17697548,113010.0,113000.0,0.28846468]
[1760144024617,0.21722983,113020.0,113000.0,0.28846468]
[1760144025025,0.17697548,113010.0,113000.0,0.28846468]
[1760144025389,0.17697548,113010.0,113000.0,0.11147353]
[1760144025661,0.17742548,113010.0,113000.0,0.04951353]
[1760144025876,0.17697548,113010.0,113000.0,0.04951353]
[1760144026073,0.17697548,113010.0,113000.0,0.28846468]
[1760144026468,0.21722983,113020.0,113000.0,0.38123468]
[1760144026671,0.04027,113020.0,113010.0,0.17697548]
[1760144026873,0.23069137,113030.0,113010.0,0.38071548]
[1760144026874,0.18579265,113030.0,113010.0,0.38071548]
[1760144027075,0.10429486,113040.0,113020.0,0.14178]
[1760144027293,0.10429486,113040.0,113020.0,0.31873962]
[1760144027510,0.22369852,113040.0,113020.0,0.31873962]
[1760144027685,0.22369852,113040.0,113030.0,0.11097]
[1760144028221,0.22414852,113040.0,113030.0,0.0017185]
[1760144028580,0.26860852,113040.0,113030.0,0.0017185]
[1760144029358,0.22414852,113040.0,113030.0,0.0017185]
[1760144029888,0.26860852,113040.0,113030.0,0.0017185]
[1760144033215,0.22414852,113040.0,113030.0,0.0017185]
[1760144033411,0.26860852,113040.0,113030.0,0.0017185]
[1760144034944,0.22369852,113040.0,113030.0,0.1170185]
[1760144035646,0.04677,113040.0,113030.0,0.29396267]
[1760144035838,0.22369852,113040.0,113030.0,0.1170185]
[1760144036239,0.22414852,113040.0,113030.0,0.0514585]
[1760144036606,0.04027,113060.0,113040.0,0.20706791]
[1760144036802,0.04027,113060.0,113050.0,0.1153]
[1760144037036,0.21716722,113060.0,113050.0,0.29221287]
[1760144037230,0.21005383,113070.0,113050.0,0.34131408]
[1760144037573,0.21005065,113070.0,113060.0,0.04974]
[1760144037773,0.21005065,113070.0,113060.0,0.00015128]
[1760144037886,0.02432501,113070.0,113060.0,0.1770485]
[1760144038090,0.00094501,113070.0,113060.0,0.2923485]
[1760144038299,0.00094501,113070.0,113060.0,0.4101312]
[1760144038510,0.00094501,113070.0,113060.0,0.4213404]
[1760144038838,0.00162501,113070.0,113060.0,0.27588306]
[1760144039227,0.00094501,113070.0,113060.0,0.27588306]
[1760144039581,0.00094501,113070.0,113060.0,0.34144306]
[1760144040715,0.00094501,113070.0,113060.0,0.44028306]
[1760144041440,0.00094501,113070.0,113060.0,0.78028306]
[1760144041639,0.00094501,113070.0,113060.0,0.80396936]
[1760144041756,0.00094501,113070.0,113060.0,0.82759306]
[1760144041973,0.00094501,113070.0,113060.0,0.91509361]
[1760144042197,0.0013247,113070.0,113060.0,0.94659956]
[1760144042404,0.0013247,113070.0,113060.0,1.0150936]
[1760144042628,0.0013247,113070.0,113060.0,0.94659618]
[1760144042837,0.0013247,113070.0,113060.0,0.93541632]
[1760144043219,0.0013247,113070.0,113060.0,0.31129116]
[1760144043352,0.00094501,113070.0,113060.0,0.65083247]
[1760144044307,0.00094501,113070.0,113060.0,0.68098437]
[1760144044512,0.00094501,113070.0,113060.0,0.70461507]
[1760144044720,0.00094501,113070.0,113060.0,0.77982437]
[1760144045782,0.00094501,113070.0,113060.0,0.68098437]
[1760144045925,0.00094501,113070.0,113060.0,0.77982437]
[1760144048067,0.00094501,113070.0,113060.0,0.80345507]
[1760144048744,0.00094501,113070.0,113060.0,0.89095562]
[1760144048963,0.00094501,113070.0,113060.0,1.04613748]
[1760144049153,0.00094501,113070.0,113060.0,0.94613749]
[1760144049557,0.00094501,113070.0,113060.0,0.92245939]
[1760144050404,0.00094501,113070.0,113060.0,0.80345627]
[1760144051253,0.00094501,113070.0,113060.0,0.77982437]
[1760144051970,0.00094501,113070.0,113060.0,0.32204171]
[1760144052690,0.00094501,113070.0,113060.0,0.66204171]
[1760144052890,0.00094501,113070.0,113060.0,0.6809607]
[1760144054233,0.00094501,113070.0,113060.0,0.61541305]
[1760144054402,0.00094501,113070.0,113060.0,0.59648171]
[1760144054594,0.00094501,113070.0,113060.0,0.65972171]
[1760144054797,0.00094501,113070.0,113060.0,0.77584225]
[1760144056393,0.10699299,113100.0,113080.0,0.17685654]
[1760144056572,0.00049,113090.0,113080.0,0.17685654]
[1760144056918,0.17848526,113090.0,113080.0,0.17685654]
[1760144057303,0.00163497,113090.0,113080.0,0.17685654]
[1760144057864,0.17686593,113080.0,113060.0,0.59741325]
[1760144058061,0.04987,113070.0,113060.0,0.61637411]
[1760144058268,0.04987,113070.0,113060.0,0.61638299]
[1760144058469,0.0124,113070.0,113060.0,0.67962299]
[1760144059655,0.12104719,113080.0,113070.0,0.17688157]
[1760144059893,0.12104719,113080.0,113070.0,0.28635157]
[1760144061162,0.12104719,113080.0,113070.0,0.30532979]
[1760144061347,0.12104719,113080.0,113070.0,0.31650347]
[1760144061656,0.0124,113080.0,113070.0,0.43267149]
[1760144062089,0.10077472,113100.0,113080.0,0.17685351]
[1760144062090,0.01102,113100.0,113080.0,0.17685351]
[1760144062389,0.01102,113100.0,113090.0,0.17685029]
[1760144062766,0.03733,113100.0,113090.0,0.17685029]
[1760144063166,0.03733,113100.0,113090.0,0.30530236]
[1760144063366,0.17685029,113090.0,113070.0,0.23950944]
[1760144063570,0.04987,113080.0,113070.0,0.57486984]
[1760144063896,0.22673593,113080.0,113070.0,0.57486984]
[1760144064120,0.22673593,113080.0,113070.0,0.0189923]
[1760144064334,0.04987,113080.0,113070.0,0.19587387]
[1760144064536,0.17685033,113090.0,113080.0,0.17686593]
[1760144064735,0.1537565,113090.0,113080.0,0.17686593]
[1760144064883,0.15490147,113090.0,113080.0,0.17686593]
[1760144065290,0.00114497,113090.0,113080.0,0.17686593]
[1760144065487,0.21521526,113090.0,113080.0,0.17686593]
[1760144065830,0.21521526,113090.0,113080.0,0.19588152]
[1760144066632,0.03836497,113090.0,113080.0,0.19588152]
[1760144067052,0.00114497,113090.0,113080.0,0.33550342]
[1760144067573,0.02745497,113090.0,113080.0,0.35913532]
[1760144067754,0.22772526,113090.0,113080.0,0.01901559]
[1760144067939,0.22772526,113090.0,113080.0,0.19588152]
[1760144068342,0.22772526,113090.0,113070.0,0.20050636]
[1760144068542,0.0124,113080.0,113070.0,0.23065826]
[1760144068753,0.18926593,113080.0,113070.0,0.23065826]
[1760144068959,0.03871,113080.0,113070.0,0.23065826]
[1760144069439,0.03871,113080.0,113070.0,0.24970245]
[1760144070211,0.21557593,113080.0,113070.0,0.21955055]
[1760144070464,0.03871,113080.0,113070.0,0.21955055]
[1760144071310,0.03871,113080.0,113070.0,0.32902055]
[1760144071525,0.01102,113100.0,113090.0,0.17685029]
[1760144071731,0.21416465,113100.0,113090.0,0.19589448]
[1760144071940,0.21416465,113100.0,113090.0,0.01904419]
[1760144072148,0.21416465,113100.0,113090.0,0.19589448]
[1760144072254,0.03733,113100.0,113090.0,0.19589448]
[1760144072695,0.21416465,113100.0,113090.0,0.01904419]
[1760144073109,0.23758465,113100.0,113090.0,0.01904419]
[1760144073555,0.17685559,113090.0,113070.0,0.2710049]
[1760144073906,0.05044253,113080.0,113070.0,0.25854503]
[1760144074291,0.22730846,113080.0,113070.0,0.0728265]
[1760144074469,0.23970846,113080.0,113070.0,0.0426746]
[1760144074838,0.17688157,113070.0,113060.0,0.00094505]
[1760144074972,0.17688157,113070.0,113060.0,0.01999882]
[1760144075173,0.22675157,113070.0,113060.0,0.19689604]
[1760144075373,0.03722,113070.0,113060.0,0.19689604]
[1760144075571,0.03722,113070.0,113060.0,0.22052794]
[1760144076198,0.21410157,113070.0,113060.0,0.22052794]
[1760144076578,0.04987,113070.0,113060.0,0.22052794]
[1760144076882,0.22675157,113070.0,113060.0,0.22052794]
[1760144078649,0.22675157,113070.0,113060.0,0.04363072]
[1760144078861,0.00057253,113080.0,113070.0,0.54703347]
[1760144079087,0.00057253,113080.0,113070.0,0.82222498]
[1760144079352,0.00057253,113080.0,113070.0,0.85394011]
[1760144079574,0.03804253,113080.0,113070.0,0.09833664]
[1760144079754,0.03804253,113080.0,113070.0,0.21973233]
[1760144080605,0.03804253,113080.0,113070.0,0.20067856]
[1760144080780,0.23970846,113080.0,113060.0,0.20163741]
[1760144080931,0.23970846,113080.0,113060.0,0.20133644]
[1760144081328,0.18928157,113070.0,113060.0,0.02444107]
[1760144081479,0.18928157,113070.0,113060.0,0.00064408]
[1760144081644,0.22650157,113070.0,113060.0,0.00064408]
[1760144088369,0.25259452,113070.0,113060.0,0.00064408]
[1760144089238,0.22650157,113070.0,113060.0,0.00064408]
[1760144090352,0.56650157,113070.0,113060.0,0.00064408]
[1760144091171,0.22650157,113070.0,113060.0,0.00064408]
[1760144091351,0.22650157,113070.0,113060.0,0.00564408]
[1760144091770,0.1836143,113070.0,113060.0,0.00564408]
[1760144101704,0.00673273,113070.0,113060.0,0.2934413]
[1760144101905,0.1768506,113090.0,113070.0,0.17688157]
[1760144102219,0.17686691,113080.0,113060.0,0.33243806]
[1760144102574,0.17686691,113080.0,113070.0,0.17688157]
[1760144103169,0.17686691,113080.0,113060.0,0.26798806]
[1760144103405,0.17686691,113080.0,113060.0,0.09109084]
[1760144103612,0.17686691,113080.0,113060.0,0.26798539]
[1760144104008,0.17688157,113070.0,113060.0,0.00564408]
[1760144105674,0.17686691,113080.0,113070.0,0.17688157]
[1760144106612,0.19330884,113100.0,113070.0,0.17688157]
[1760144106613,0.19330884,113100.0,113080.0,0.17686593]
[1760144106817,0.17685029,113090.0,113070.0,0.23217564]
[1760144107496,0.17686593,113080.0,113070.0,0.26232754]
[1760144107698,0.17686593,113080.0,113060.0,0.22834722]
[1760144107908,0.17688157,113070.0,113060.0,0.18189722]
[1760144108108,0.17688157,113070.0,113060.0,0.005]
[1760144108518,0.17688157,113070.0,113060.0,0.18189722]
[1760144108519,0.17187259,113070.0,113060.0,0.18189722]
[1760144108828,0.17686593,113080.0,113070.0,0.17688157]
[1760144109062,0.17686593,113080.0,113060.0,0.18189722]
[1760144110072,0.17686593,113080.0,113070.0,0.17688157]
[1760144110361,0.17686593,113080.0,113060.0,0.22774722]
[1760144110803,0.17686593,113080.0,113060.0,0.18189722]
[1760144110992,0.17688157,113070.0,113060.0,0.18189722]
[1760144111204,0.17688157,113070.0,113060.0,0.005]
[1760144112202,0.10485126,113040.0,113030.0,0.23720313]
[1760144112372,0.17691287,113050.0,113040.0,0.17692852]
[1760144112573,0.17691027,113060.0,113040.0,0.24185852]
[1760144112769,0.17691287,113050.0,113040.0,0.28770852]
[1760144113087,0.18575513,113060.0,113040.0,0.28770852]
[1760144113693,0.17691287,113050.0,113040.0,0.28770852]
[1760144113895,0.18575513,113060.0,113040.0,0.28770852]
[1760144114120,0.17691287,113050.0,113040.0,0.28770852]
[1760144114527,0.18575513,113060.0,113040.0,0.28770852]
[1760144115845,0.17691287,113050.0,113040.0,0.28770852]
[1760144116429,0.17691287,113050.0,113040.0,0.22277852]
[1760144116838,0.2617769,113070.0,113060.0,1.535618]
[1760144117407,0.18572564,113070.0,113060.0,1.45956674]
[1760144117880,0.52572564,113070.0,113060.0,1.00288435]
[1760144118076,0.55587754,113070.0,113060.0,0.5496466]
[1760144118282,1.32586257,113070.0,113060.0,0.32017259]
[1760144118498,1.32586257,113070.0,113060.0,0.1887215]
[1760144118702,1.42586256,113070.0,113060.0,0.1887215]
[1760144118910,1.32586257,113070.0,113060.0,0.1887215]
[1760144119126,1.42586256,113070.0,113060.0,0.1887215]
[1760144119337,0.70708041,113040.0,113030.0,0.00515129]
[1760144119540,0.7320804,113040.0,113030.0,0.00515129]
[1760144119741,0.7320804,113040.0,113030.0,0.00808661]
[1760144119948,0.63208041,113040.0,113030.0,0.00808661]
[1760144120152,0.7320804,113040.0,113030.0,0.00808661]
[1760144120351,0.63208041,113040.0,113030.0,0.00808661]
[1760144120518,0.7320804,113040.0,113030.0,0.00808661]
[1760144121512,0.63208041,113040.0,113030.0,0.00808661]
[1760144121966,0.67692851,113040.0,113030.0,0.00808661]
[1760144122214,0.17792852,113040.0,113030.0,0.00808661]
[1760144123144,0.17692852,113040.0,113030.0,0.00808661]
[1760144123340,0.57692852,113040.0,113030.0,0.00808661]
[1760144123712,0.17697548,113010.0,113000.0,0.00500001]
[1760144123827,0.17712656,113010.0,113000.0,0.00500001]
[1760144124033,0.16093318,113020.0,113000.0,0.00500001]
[1760144124341,0.64697548,113010.0,113000.0,0.00722272]
[1760144124547,0.17697548,113010.0,113000.0,0.00722272]
[1760144124752,0.51697548,113010.0,113000.0,0.00722272]
[1760144127062,0.91697548,113010.0,113000.0,0.00722272]
[1760144127488,0.51697548,113010.0,113000.0,0.00722272]
[1760144128392,0.91697548,113010.0,113000.0,0.00722272]
[1760144130761,0.91797548,113010.0,113000.0,0.00722272]
[1760144130967,0.51797548,113010.0,113000.0,0.00722272]
[1760144132310,0.51697548,113010.0,113000.0,0.00722272]
[1760144136952,0.19858409,112990.0,112980.0,0.0071069]
[1760144137128,0.19908861,112990.0,112980.0,0.0071069]
[1760144137333,0.19908861,112990.0,112980.0,0.00825337]
[1760144140235,0.19908861,112990.0,112980.0,0.24924585]
[1760144140236,0.00050452,112990.0,112980.0,0.24924585]
[1760144140454,0.00050452,112990.0,112980.0,0.75919775]
[1760144141528,0.00050452,112990.0,112980.0,0.76019775]
[1760144142970,0.00050452,112990.0,112980.0,0.32928775]